[Event "Icelandic Championship 2022"]
[Site "Selfoss"]
[Date "2022.04.21"]
[Round "1.1"]
[White "Stefansson, Hannes"]
[Black "Kjartansson, Gudmundur"]
[Result "1-0"]
[ECO "B51"]
[WhiteElo "2520"]
[BlackElo "2450"]
[Annotator "TA"]
[PlyCount "55"]
[EventDate "2022.04.21"]
[EventType "tourn"]
[EventCountry "ISL"]
[SourceTitle "playchess.com"]
[Source "ChessBase"]
[SourceQuality "1"]
[TimeControl "40/5400+30:1800+30"]

{[%evp 9,55,12,12,0,0,8,5,0,29,16,33,10,32,29,29,31,36,38,24,39,172,114,154,184,207,196,283,264,260,270,248,248,322,322,413,404,625,464,451,374,1093,1091,1086,1083,1034,991,29990,29991]} 1. e4 {[%emt 0:00:06]} c5 {[%emt 0:00:17]} 2. Nf3 {[%emt 0:00:14]} d6 {[%emt 0:00:08]} 3. Bb5+ {[%emt 0:00:30]} Nd7 {[%emt 0:00:29]} 4. c4 {[%emt 0:00:38]} Ngf6 {[%emt 0:01:48]} 5. Nc3 {[%emt 0:00:44]} g6 {[%emt 0:04:06]} 6. h3 {[%emt 0:01:30] B51: Sicilian: Moscow Variation (3 Bb5+) without 3...Bd7.} Bg7 {[%emt 0:01:48]} 7. d3 {[%emt 0:00:40]} O-O {[%emt 0:01:46]} 8. Ba4 {[%emt 0:00:31] The position is equal.} a6 {[%emt 0:22:24][%cal Ob7b5]} 9. Be3 {[%emt 0:11:14]} Qc7 {[%emt 0:11:29][%cal Ob7b5]} 10. Qd2 {[%emt 0:04:53]} e6 {[%emt 0:03:37][%cal Ob7b5]} (10... b5 $5 11. cxb5 Qa5 $14) 11. O-O {[%emt 0:04:02]} b6 {[%emt 0:07:22]} 12. Bh6 {[%emt 0:17:30]} Bb7 {[%emt 0:02:25] [#]} 13. Bxg7 $5 $146 {[%emt 0:03:50][%mdl 8] New and interesting.} ({Predecessor:} 13. Rae1 Ne5 14. Nxe5 dxe5 15. Bxg7 Kxg7 16. Ne2 Nh5 17. Qc3 Kg8 18. a3 a5 19. Kh2 {½-½ (41) Kollars,D (2598)-Donchenko,A (2659) Magdeburg 2021}) 13... Kxg7 {[%emt 0:00:04]} 14. Rae1 {[%emt 0:02:03]} d5 {[%emt 0:19:43]} (14... Nb8 $14) 15. cxd5 {[%emt 0:03:03]} ({Better is} 15. e5 $18) 15... exd5 {[%emt 0:00:05]} 16. e5 {[%emt 0:00:47] &Bianco is more active.} Ng8 {[%emt 0:00:40] [#]} 17. e6 $1 {[%emt 0:04:57]} fxe6 {[%emt 0:07:09]} (17... d4 $142) 18. Ng5 $18 {[%emt 0:01:02]} ({Weaker is} 18. Rxe6 Rf6 19. Ree1 b5 $14) 18... Rae8 {[%emt 0:01:22]} 19. Nxe6+ {[%emt 0:01:02]} Rxe6 {[%emt 0:00:02]} 20. Rxe6 {[%emt 0:00:12] Black must now prevent Bxd7.} d4 {[%emt 0:02:51]} 21. Ne4 {[%emt 0:02:49]} b5 {[%emt 0:01:11]} 22. Bb3 {[%emt 0:01:42]} Ndf6 {[%emt 0:06:51]} (22... Bxe4 $142 23. Rxe4 Ndf6) 23. Nxf6 {[%emt 0:02:47]} Nxf6 {[%emt 0:00:04]} 24. Qe2 {[%emt 0:02:19] [#] Strongly threatening Re7+.} Kh6 $2 {[%emt 0:03:05]} (24... Rf7 25. Re1 Nd5 26. Qe5+ Qxe5 27. R1xe5 Rd7) 25. Re7 {[%emt 0:03:42]} Qc6 {[%emt 0:00:18]} 26. Qd2+ {[%emt 0:00:16]} g5 {[%emt 0:00:21]} 27. f4 {[%emt 0:00:27]} Nd5 {[%emt 0:01:55]} 28. Bxd5 {[%emt 0:01:03] Weighted Error Value: White=0.20 (precise) /Black=0.81} 1-0

[Event "Icelandic Championship 2022"]
[Site "Selfoss"]
[Date "2022.04.21"]
[Round "1.2"]
[White "Thorhallsson, Simon"]
[Black "Thorfinnsson, Bragi"]
[Result "1/2-1/2"]
[ECO "A90"]
[WhiteElo "2245"]
[BlackElo "2419"]
[Annotator "TA"]
[PlyCount "75"]
[EventDate "2022.04.21"]
[EventType "tourn"]
[EventCountry "ISL"]
[SourceTitle "playchess.com"]
[Source "ChessBase"]
[SourceQuality "1"]
[TimeControl "40/5400+30:1800+30"]

{[%evp 16,75,29,4,10,20,21,20,24,0,0,0,29,-4,9,-8,0,0,18,0,20,16,34,33,30,17,40,24,44,9,61,22,35,34,33,0,0,0,0,0,0,0,0,0,0,0,0,0,0,0,0,0,0,0,0,0,0,0,0,0,0,0]} 1. d4 {[%emt 0:00:04]} f5 {[%emt 0:01:44]} 2. c4 {[%emt 0:01:01]} Nf6 {[%emt 0:00:27]} 3. g3 {[%emt 0:00:12]} e6 {[%emt 0:01:16]} 4. Bg2 {[%emt 0:00:21]} c6 {[%emt 0:00:49]} 5. Nf3 {[%emt 0:00:22]} d5 {[%emt 0:00:53]} 6. O-O {[%emt 0:00:30]} Bd6 {[%emt 0:00:38]} 7. b3 {[%emt 0:02:27]} Qe7 {[%emt 0:00:36]} 8. Bb2 {[%emt 0:00:24]} b6 {[%emt 0:07:30]} 9. Qc1 {[%emt 0:04:11]} Bb7 {[%emt 0:05:30] A90: Dutch Defence: Miscellaneous and Modern Stonewall (with ...Bd6).} 10. Ba3 {[%emt 0:03:28]} Nbd7 {[%emt 0:05:01]} 11. Bxd6 {[%emt 0:04:42]} Qxd6 {[%emt 0:01:32]} 12. Qa3 {[%emt 0:03:42]} (12. Nc3 {seems wilder.} Ne4 13. e3 O-O 14. Rd1) 12... Qxa3 {[%emt 0:09:11]} 13. Nxa3 {[%emt 0:00:11]} a5 {[%emt 0:00:30] [#]} 14. Nb1 $146 {[%emt 0:10:30]} ({Predecessor:} 14. Rfc1 Ne4 15. Ne1 Ke7 16. Nd3 Rhc8 17. Rc2 a4 18. b4 c5 19. bxc5 bxc5 20. Nxc5 Ndxc5 21. dxc5 Rxc5 {½-½ (42) Baltag,I (2393)-Sevgi,V (2359) Chess.com INT 2020}) 14... Ne4 {[%emt 0:06:34]} 15. Rc1 {[%emt 0:02:19]} Ke7 {[%emt 0:03:41]} 16. Nc3 {[%emt 0:13:01]} Kd6 {[%emt 0:03:19]} 17. Nxe4+ {[%emt 0:11:07]} fxe4 {[%emt 0:01:56]} 18. Nd2 {[%emt 0:00:17]} g5 {[%emt 0:03:06]} 19. f3 {[%emt 0:03:45]} exf3 {[%emt 0:04:01]} 20. Bxf3 {[%emt 0:00:26]} c5 {[%emt 0:05:05]} 21. dxc5+ {[%emt 0:06:49]} Nxc5 {[%emt 0:01:11]} 22. Rd1 {[%emt 0:02:00]} Ke5 {[%emt 0:03:19]} (22... Rhd8 $11) 23. Rac1 {[%emt 0:08:48][%cal Ba1c1,Bc1c3,Bc3e3,Be3e5,Be5f5,Bf5f6][%mdl 32]} h5 {[%emt 0:03:20]} 24. cxd5 {[%emt 0:05:34]} exd5 {[%emt 0:00:06]} 25. Rc3 {[%emt 0:00:18][%cal Oe2e4]} g4 {[%emt 0:03:50] The position is equal.} 26. Bg2 {[%emt 0:01:50][%cal Oe2e4]} Rac8 {[%emt 0:05:47]} 27. Re3+ {[%emt 0:01:54]} Kf5 {[%emt 0:01:14]} 28. Rf1+ {[%emt 0:00:39]} Kg6 {[%emt 0:00:05]} 29. Re5 {[%emt 0:01:00]} Rce8 {[%emt 0:03:14]} 30. Ref5 {[%emt 0:00:57]} Rxe2 {[%emt 0:07:58]} 31. Rf6+ {[%emt 0:04:41]} Kg7 {[%emt 0:00:05]} 32. Rf7+ {[%emt 0:00:18]} Kg8 {[%emt 0:00:11]} 33. Rf8+ {[%emt 0:01:44]} Kg7 {[%emt 0:00:06]} 34. R1f7+ {[%emt 0:00:34]} Kg6 {[%emt 0:00:18] [#] ...Rxf8 is the strong threat.} 35. Rf6+ {[%emt 0:00:12]} Kg7 {[%emt 0:00:32]} 36. R8f7+ {[%emt 0:00:48]} Kg8 {[%emt 0:00:05]} 37. Rf8+ {[%emt 0:04:03]} Kg7 {[%emt 0:00:06]} 38. R8f7+ {[%emt 0:00:41] Weighted Error Value: White=0.09 (flawless) /Black=0.09 (flawless)} 1/2-1/2

[Event "Icelandic Championship 2022"]
[Site "Selfoss"]
[Date "2022.04.21"]
[Round "1.3"]
[White "Gretarsson, Hjorvar Steinn"]
[Black "Thorhallsson, Throstur"]
[Result "1/2-1/2"]
[ECO "B62"]
[WhiteElo "2548"]
[BlackElo "2414"]
[Annotator "TA"]
[PlyCount "128"]
[EventDate "2022.04.21"]
[EventType "tourn"]
[EventCountry "ISL"]
[SourceTitle "playchess.com"]
[Source "ChessBase"]
[SourceQuality "1"]
[TimeControl "40/5400+30:1800+30"]

{[%evp 13,128,0,43,47,45,45,45,45,51,48,99,96,63,97,100,41,150,116,113,118,124,72,62,70,68,65,107,106,127,141,170,174,156,153,154,168,155,137,131,116,152,142,133,0,0,0,0,0,0,0,0,0,0,0,0,0,4,0,0,0,0,0,0,0,0,0,0,0,0,0,0,0,25,0,26,12,38,10,8,11,13,0,0,0,0,0,25,22,23,25,23,22,22,22,22,22,22,4,12,8,69,38,38,38,69,69,69,69,69,8,8,8,8,8,8,8,8]} 1. e4 {[%emt 0:00:30]} c5 {[%emt 0:00:53]} 2. Nf3 {[%emt 0:00:00]} Nc6 {[%emt 0:02:01]} 3. d4 {[%emt 0:01:40]} cxd4 {[%emt 0:00:06]} 4. Nxd4 {[%emt 0:00:04]} Nf6 {[%emt 0:01:25]} 5. Nc3 {[%emt 0:00:07]} d6 {[%emt 0:00:05]} 6. Bg5 {[%emt 0:00:56]} e6 {[%emt 0:01:19]} 7. Qd3 {[%emt 0:02:13]} a6 {[%emt 0:03:30] 7...Bd7 is the fancy move.} 8. Nxc6 {[%emt 0:01:54] B62: Sicilian: Richter-Rauzer: 6...e6: Unusual White 7th moves.} bxc6 {[%emt 0:00:05]} 9. O-O-O {[%emt 0:00:47][%cal Oe4e5]} Be7 {[%emt 0:04:19]} 10. Qg3 {[%emt 0:02:30] White is slightly better.} e5 {[%emt 0:10:52]} 11. Bc4 {[%emt 0:20:49] [#]} Be6 $146 {[%emt 0:06:35]} (11... h6 $14 12. Bd2 Nh5) ({Predecessor:} 11... h6 12. Bd2 g5 13. h4 g4 14. f4 gxf3 15. gxf3 Rg8 16. Qf2 Bf8 17. Be3 Be6 {1-0 (37) Sarana,A (2655)-Vovk,A (2618) Douglas 2019}) 12. Bxe6 $16 {[%emt 0:02:18]} fxe6 {[%emt 0:00:08]} 13. Qh3 {[%emt 0:00:51] Prevents Nh5.} Kf7 {[%emt 0:21:43]} 14. f4 {[%emt 0:04:39]} (14. Kb1 $16) 14... exf4 {[%emt 0:12:30]} (14... h6 $1 $14 15. Bxf6 Bxf6) 15. Bxf4 {[%emt 0:05:32]} Qc7 {[%emt 0:05:24]} 16. Rhf1 {[%emt 0:03:56][%cal Oe4e5]} h6 {[%emt 0:03:27]} 17. Rd3 {[%emt 0:09:09]} (17. e5 $142 dxe5 18. Bg3) 17... e5 {[%emt 0:04:47]} 18. Bd2 {[%emt 0:00:50]} Qc8 {[%emt 0:01:06]} 19. g4 {[%emt 0:03:43][%cal Bg2g4,Bg4g5][%mdl 32]} Rf8 {[%emt 0:02:08]} 20. Rf5 $36 {[%emt 0:06:31][%mdl 2048] Black is under strong pressure. &Bianco is more active.} Qe6 {[%emt 0:03:07] [#]} 21. Bxh6 $1 {[%emt 0:08:39][%mdl 512]} gxh6 {[%emt 0:06:11]} 22. g5 {[%emt 0:01:14][%mdl 64] Pin} (22. Qxh6 Rh8 23. Qd2 Ke8 $17) 22... Ke8 {[%emt 0:00:54]} 23. Qxh6 {[%emt 0:04:58][%mdl 64] Threatens to win with Rdf3. Pin} (23. gxf6 Rxf6 24. Kb1 Kd7 $16) (23. Rxf6 Qxh3 24. Rxf8+ Kxf8 $15) 23... Kd7 {[%emt 0:00:11] Strongly threatening ...Rh8.} 24. gxf6 {[%emt 0:01:09]} Rxf6 {[%emt 0:00:28]} 25. Rxf6 {[%emt 0:02:00]} ({Inferior is} 25. Qh7 Rh6 26. Na4 Rg8 27. Nc5+ Kc8 $11) 25... Qxf6 {[%emt 0:00:53]} 26. Qh3+ {[%emt 0:02:00]} Kc7 {[%emt 0:02:52] [#]} 27. Kb1 $1 {[%emt 0:07:05]} Rf8 {[%emt 0:01:12] [#]} 28. Rd1 {[%emt 0:02:28] Prevents Qf1.} (28. Nd1 $1 $16) 28... Qf3 $1 $11 {[%emt 0:00:58] Against Qe3} 29. Qh6 {[%emt 0:00:23]} Qf4 {[%emt 0:01:27]} 30. Qg7 {[%emt 0:00:45]} Qf7 {[%emt 0:00:39]} 31. Qg4 {[%emt 0:01:15]} Qf3 {[%emt 0:00:09]} 32. Qg1 {[%emt 0:00:31]} Qf2 {[%emt 0:00:10] Against Qa7+} 33. a4 {[%emt 0:00:59]} Qxg1 {[%emt 0:01:33]} 34. Rxg1 {[%emt 0:00:05][%mdl 4096] Endgame KRB-KRN} Rf2 {[%emt 0:00:41]} 35. h3 {[%emt 0:00:28]} a5 {[%emt 0:00:50]} 36. Rg3 {[%emt 0:02:22]} Kd7 {[%emt 0:00:15]} 37. Rg8 {[%emt 0:01:16]} Bd8 {[%emt 0:00:42]} 38. Kc1 {[%emt 0:01:31]} Rh2 {[%emt 0:00:43]} 39. Rh8 {[%emt 0:00:52]} Rh1+ {[%emt 0:02:37]} 40. Kd2 {[%emt 0:00:04]} Bg5+ {[%emt 0:00:26]} 41. Kd3 {[%emt 0:30:07]} Rh2 {[%emt 0:30:24]} 42. h4 {[%emt 0:00:00]} Rd2+ {[%emt 0:00:00]} 43. Kc4 {[%emt 0:00:00]} Bf6 {[%emt 0:00:00]} 44. Rh7+ {[%emt 0:00:00]} Ke6 {[%emt 0:00:00]} 45. Rc7 {[%emt 0:00:00]} d5+ {[%emt 0:00:00]} 46. Kb3 $1 {[%emt 0:00:00]} (46. Kc5 Be7+ 47. Kxc6 d4 $17) 46... Kd6 {[%emt 0:00:00]} 47. Rh7 {[%emt 0:00:00]} d4 {[%emt 0:00:00]} 48. Nb1 {[%emt 0:00:00]} ({Don't play} 48. Rh6 Ke6 49. Nb1 Re2 $17) 48... Re2 {[%emt 0:00:00]} 49. Na3 {[%emt 0:00:00]} ({Much worse is} 49. Rh6 Ke6 50. h5 Rxe4 $17) 49... Re3+ {[%emt 0:00:00]} 50. c3 {[%emt 0:00:00] Hoping for Nc4+.} Rxe4 {[%emt 0:00:00] ...d3 is the strong threat.} 51. Nc4+ {[%emt 0:00:00]} Ke6 {[%emt 0:00:00] aiming for ...d3.} 52. Rc7 {[%emt 0:00:00]} Rxh4 {[%emt 0:00:00]} 53. Rxc6+ {[%emt 0:00:00]} Ke7 {[%emt 0:00:00]} 54. cxd4 {[%emt 0:00:00]} exd4 {[%emt 0:00:00]} 55. Nxa5 {[%emt 0:01:26]} d3 {[%emt 0:00:00] Inhibits Rc2.} 56. Rc1 {[%emt 0:01:21]} Bxb2 {[%emt 0:02:31]} 57. Rd1 {[%emt 0:00:05]} Bd4 {[%emt 0:03:14]} 58. Rxd3 {[%emt 0:00:10]} Bc5 {[%emt 0:00:14]} 59. Nc6+ {[%emt 0:00:05]} Ke6 {[%emt 0:00:11]} 60. a5 {[%emt 0:00:06]} Re4 {[%emt 0:01:09]} 61. a6 {[%emt 0:00:28]} (61. Rd1 $14) 61... Re3 {[%emt 0:00:44] The position is equal.} 62. Rxe3+ {[%emt 0:00:45]} Bxe3 {[%emt 0:00:01]} 63. Kc4 {[%emt 0:00:05] Nd4+ would kill now.} Kd6 {[%emt 0:00:09]} 64. Kb5 {[%emt 0:00:41]} Kc7 {[%emt 0:00:06] Blacks defense is rewarded with a draw.  Weighted Error Value: White=0.08 (flawless) /Black=0.09 (flawless)} 1/2-1/2

[Event "Icelandic Championship 2022"]
[Site "Selfoss"]
[Date "2022.04.21"]
[Round "1.4"]
[White "Mai, Alexander Oliver"]
[Black "Heimisson, Hilmir Freyr"]
[Result "0-1"]
[ECO "C48"]
[WhiteElo "2207"]
[BlackElo "2312"]
[Annotator "TA"]
[PlyCount "98"]
[EventDate "2022.04.21"]
[EventType "tourn"]
[EventCountry "ISL"]
[SourceTitle "playchess.com"]
[Source "ChessBase"]
[SourceQuality "1"]
[TimeControl "40/5400+30:1800+30"]

{[%evp 9,98,14,12,0,8,0,16,13,14,32,20,-60,-52,-250,-246,-266,-258,-530,-525,-521,-516,-528,-510,-550,-520,-516,-414,-454,-456,-532,-529,-600,-364,-542,-552,-527,-472,-477,-456,-562,-474,-510,-508,-505,-502,-518,-493,-518,-518,-547,-547,-539,-541,-616,-637,-633,-616,-633,-615,-599,-627,-820,-832,-756,-727,-773,-773,-775,-727,-740,-702,-782,-742,-768,-737,-815,-736,-1036,-1029,-1862,-1812,-2453,-1546,-2399,-2390,-29987,-29988,-29993,-29993,-29993,-29994]} 1. e4 {[%emt 0:00:03]} e5 {[%emt 0:00:37]} 2. Nf3 {[%emt 0:00:10]} Nf6 {[%emt 0:00:07]} 3. Nc3 {[%emt 0:00:06]} Nc6 {[%emt 0:00:08]} 4. Bb5 {[%emt 0:00:06]} Bd6 {[%emt 0:01:02]} 5. d3 {[%emt 0:02:07]} O-O {[%emt 0:02:58]} 6. a3 {[%emt 0:03:38] C48: Four Knights: 4 Bb5, replies other than 4...Bb4.} Bc5 {[%emt 0:06:03]} 7. Bg5 {[%emt 0:04:29]} a6 {[%emt 0:20:47] [#]} 8. Ba4 $146 {[%emt 0:02:22] The position is equal.} ({Predecessor:} 8. Bxc6 bxc6 9. Nxe5 d5 10. exd5 cxd5 11. O-O Qd6 12. Bf4 d4 13. b4 dxc3 14. Qf3 {½-½ (43) Dos Santos Bezerra,B-Mafra,G Recife 2018}) 8... h6 {[%emt 0:07:05]} 9. Bh4 {[%emt 0:00:42]} d6 {[%emt 0:02:26]} 10. Nd5 {[%emt 0:31:03]} (10. Qd2 $11) 10... g5 $15 {[%emt 0:19:21]} 11. Nxg5 {[%emt 0:00:15]} Nxd5 $19 {[%emt 0:02:06]} (11... hxg5 12. Bxg5 Bxf2+ 13. Kxf2 (13. Kf1 $2 Nxd5 14. Bxd8 Ne3+ 15. Kxf2 Nxd1+ 16. Raxd1 Nxd8 $19) 13... Nxe4+ 14. dxe4 $14) 12. Qh5 {[%emt 0:01:33]} Qf6 {[%emt 0:03:14] And now ...Nf4 would win.} ({Avoid the trap} 12... hxg5 $2 13. Bxg5 Nf6 14. Qh4 $19) 13. Nh7 $2 {[%emt 0:06:26]} (13. exd5 hxg5 14. Qxg5+ Qxg5 15. Bxg5) 13... Qg7 {[%emt 0:05:58]} 14. exd5 {[%emt 0:29:55]} Kxh7 {[%emt 0:02:29]} 15. h3 {[%emt 0:09:14] [#] Prevents Bg4.} b5 $1 {[%emt 0:03:37][%cal Bb7b5,Bb5a4][%mdl 32]} 16. dxc6 {[%emt 0:01:04]} (16. Bxb5 Qxg2) 16... bxa4 {[%emt 0:00:10]} ({Worse is} 16... Qxg2 17. O-O-O $17) 17. O-O-O {[%emt 0:00:46]} Qg6 {[%emt 0:04:20]} 18. Qe2 {[%emt 0:00:28]} Rb8 {[%emt 0:00:27]} ({Not} 18... Qxg2 $2 19. d4 Bxd4 20. Rhg1 Bxb2+ 21. Kxb2 Rb8+ 22. Kc1 Qxh3 23. Qd3+ Qxd3 24. Rxd3 $19) 19. Rhf1 {[%emt 0:01:10]} Qe6 {[%emt 0:07:39]} 20. Qe4+ {[%emt 0:01:06]} Qf5 {[%emt 0:01:03]} 21. Qxa4 {[%emt 0:00:25]} (21. Rde1 $142) 21... Bd4 {[%emt 0:00:45]} 22. f4 {[%emt 0:01:31]} Be3+ {[%emt 0:02:00]} 23. Kb1 {[%emt 0:00:05]} exf4 {[%emt 0:00:37]} 24. g3 {[%emt 0:01:49]} Qb5 {[%emt 0:05:36]} 25. Qxb5 {[%emt 0:00:16]} axb5 {[%emt 0:00:43]} 26. gxf4 {[%emt 0:00:20]} Bxh3 {[%emt 0:01:12]} 27. Rh1 {[%emt 0:00:22]} Bg4 {[%emt 0:00:32]} 28. Rdf1 {[%emt 0:01:20]} f5 {[%emt 0:00:24]} 29. Bg5 {[%emt 0:00:25]} h5 {[%emt 0:00:22]} 30. Re1 {[%emt 0:00:25]} Rfe8 {[%emt 0:00:31]} 31. c3 {[%emt 0:00:52]} Bd2 {[%emt 0:00:48]} 32. Rxe8 {[%emt 0:00:23]} Rxe8 {[%emt 0:00:01]} 33. Kc2 {[%emt 0:00:07]} Re2 {[%emt 0:01:03]} 34. Kb3 {[%emt 0:00:01]} Be3 {[%emt 0:00:21] Hoping for ...Bf3.} 35. Rb1 {[%emt 0:01:41]} Bf3 {[%emt 0:00:27]} 36. Bd8 {[%emt 0:00:53]} Bb6 {[%emt 0:00:15]} 37. c4 {[%emt 0:00:20]} Bxc6 {[%emt 0:00:31]} 38. cxb5 {[%emt 0:00:07]} Bxb5 {[%emt 0:00:21]} 39. Kc3 {[%emt 0:00:36]} Re8 {[%emt 0:00:35]} 40. Bg5 {[%emt 0:00:24]} Re3 {[%emt 0:00:21]} 41. Rd1 {[%emt 0:30:12]} d5 {[%emt 0:31:03] ...d4+ is the strong threat.} 42. Bf6 {[%emt 0:00:41]} c5 {[%emt 0:00:31][%cal Bc7c5,Bc5c4,Bc4d3,Bd3d2][%mdl 32]} 43. Kc2 {[%emt 0:00:26]} c4 {[%emt 0:00:00] White must now prevent ...Ba4+.} 44. Rg1 {[%emt 0:00:00]} cxd3+ {[%emt 0:00:00]} 45. Kc1 {[%emt 0:00:00]} d2+ {[%emt 0:00:00]} 46. Kd1 {[%emt 0:00:00]} Re2 {[%emt 0:00:00]} 47. Rg7+ {[%emt 0:00:00]} Kh6 {[%emt 0:00:00] Black mates.} 48. b3 {[%emt 0:00:00]} Be3 {[%emt 0:00:00]} 49. Kc2 {[%emt 0:00:00] [#]} Bd3+ $1 {[%emt 0:00:00] Black took control after the opening.  Weighted Error Value: White=0.56/Black=0.18 (very precise)} 0-1

[Event "Icelandic Championship 2022"]
[Site "Selfoss"]
[Date "2022.04.21"]
[Round "1.5"]
[White "Steingrimsson, Hedinn"]
[Black "Stefansson, Vignir Vatnar"]
[Result "1-0"]
[ECO "D35"]
[WhiteElo "2535"]
[BlackElo "2484"]
[Annotator "TA"]
[PlyCount "81"]
[EventDate "2022.04.21"]
[EventType "tourn"]
[EventCountry "ISL"]
[SourceTitle "playchess.com"]
[Source "ChessBase"]
[SourceQuality "1"]
[TimeControl "40/5400+30:1800+30"]

{[%evp 12,81,20,12,18,0,0,9,11,3,9,9,25,26,22,0,0,0,0,-7,0,0,0,0,0,0,0,0,0,0,10,0,0,0,0,0,0,0,-1,-6,-8,-39,-12,-30,-32,-66,-42,-37,-36,-34,-33,-153,-169,-159,-147,-171,-170,-179,-175,-150,-100,-229,0,0,527,525,520,517,516,486,718,704]} 1. d4 {[%emt 0:00:25]} Nf6 {[%emt 0:00:33]} 2. c4 {[%emt 0:00:05]} e6 {[%emt 0:00:19]} 3. Nc3 {[%emt 0:00:03]} d5 {[%emt 0:00:47]} 4. cxd5 {[%emt 0:00:09]} Nxd5 {[%emt 0:00:36]} 5. e4 {[%emt 0:00:15]} Nxc3 {[%emt 0:00:07]} 6. bxc3 {[%emt 0:00:02]} c5 {[%emt 0:00:12]} 7. Rb1 {[%emt 0:00:18]} Be7 {[%emt 0:01:04] D35: Queen's Gambit Declined: Exchange Variation.} 8. Nf3 {[%emt 0:03:28]} O-O {[%emt 0:00:50]} 9. Bc4 {[%emt 0:05:55]} Qc7 {[%emt 0:00:31] The position is equal. 9...a6 gains popularity.} 10. Qe2 {[%emt 0:10:48]} a6 {[%emt 0:00:46]} 11. O-O {[%emt 0:01:56]} b5 {[%emt 0:00:41]} 12. Bd3 {[%emt 0:00:04][%cal Oa2a4]} Nd7 {[%emt 0:00:15] [#]} 13. e5 $1 $146 {[%emt 0:15:34][%mdl 8] An important novelty.} (13. a4 $5) ({Predecessor:} 13. a4 bxa4 14. d5 exd5 15. exd5 Nf6 16. c4 Bg4 17. h3 Bh5 18. Ra1 Bd6 19. g4 {1-0 (58) Xiong,J (2709)-Wei,Y (2732) Chess.com INT 2020}) 13... Bb7 {[%emt 0:00:14]} 14. Ng5 {[%emt 0:06:06]} h6 {[%emt 0:00:09]} 15. Ne4 {[%emt 0:00:43][%cal Oa2a4]} cxd4 {[%emt 0:29:22]} 16. cxd4 {[%emt 0:00:29][%cal Oa2a4]} f5 {[%emt 0:12:04] [#] White must now prevent ...Qc6.} 17. exf6 $1 {[%emt 0:05:37]} Nxf6 {[%emt 0:00:37]} 18. Re1 {[%emt 0:22:36]} Bd5 {[%emt 0:04:00]} 19. Bd2 {[%emt 0:09:29]} Nxe4 {[%emt 0:09:55]} 20. Bxe4 {[%emt 0:00:05]} Bd6 {[%emt 0:01:50]} 21. Rbc1 {[%emt 0:06:00]} Qf7 {[%emt 0:04:26]} ({Don't do} 21... Bxh2+ 22. Kh1 Qb8 23. Bxd5 (23. g3 Bxg3 24. fxg3 Qxg3 $16) 23... exd5 24. g3 Bxg3 25. fxg3 Qxg3 26. Qh5 $16) 22. Bxd5 {[%emt 0:02:57]} exd5 {[%emt 0:00:12]} 23. Rc6 {[%emt 0:00:22]} Rfe8 {[%emt 0:06:26]} 24. Be3 {[%emt 0:00:04]} Bf4 $40 {[%emt 0:05:35][%mdl 128] Black is up to no good.} 25. Qf3 {[%emt 0:01:48]} Re4 {[%emt 0:03:09]} 26. g3 {[%emt 0:01:58]} Qd7 {[%emt 0:02:02] [#] Threatens to win with ...Bxe3.} 27. Rc3 {[%emt 0:00:17]} (27. Rg6 $5 {[%cal Rg3f4]} Bxe3 28. fxe3 $15) 27... Bg5 {[%emt 0:01:56][%cal Bf4g5,Bg5e7,Be7d6][%mdl 32]} 28. Rd1 {[%emt 0:02:50]} Rf8 {[%emt 0:02:34]} 29. Qe2 {[%emt 0:00:02]} b4 {[%emt 0:03:26]} 30. Rb3 {[%emt 0:00:07]} a5 {[%emt 0:00:53][%cal Ba6a5,Ba5a4][%mdl 32]} 31. h4 {[%emt 0:02:36]} ({White should try} 31. a3 $15) 31... Be7 $17 {[%emt 0:07:43]} 32. Kg2 {[%emt 0:01:18]} a4 {[%emt 0:00:04]} 33. Rbb1 {[%emt 0:00:04][%cal Bb3b1,Bb1c1,Bc1c6,Bc6b6][%mdl 32]} Bd6 {[%emt 0:00:23]} 34. Rbc1 {[%emt 0:00:35]} Qf5 {[%emt 0:00:34]} 35. Rc6 {[%emt 0:01:24]} Rf6 {[%emt 0:00:13]} ({Black should play} 35... Re6 36. Re1 Qe4+ 37. Kg1 b3 38. axb3 axb3) 36. Rdc1 {[%emt 0:00:25]} (36. h5 $17) 36... Kh7 $2 {[%emt 0:01:51]} (36... Rg4 $19 {Hoping for ...Qe4+.} 37. Rc8+ Kh7) 37. Rb6 $1 $11 {[%emt 0:01:18]} Rxh4 $2 {[%emt 0:02:07][%mdl 8192]} 38. gxh4 $18 {[%emt 0:00:38] White is clearly winning.} Qe4+ {[%emt 0:00:20]} 39. f3 {[%emt 0:00:24]} Rg6+ {[%emt 0:00:20]} 40. Kf1 {[%emt 0:00:33]} Qxh4 {[%emt 0:00:14]} (40... Qf5 $142 41. Rcc6 b3) 41. Qd3 {[%emt 0:08:16] White used his chance.  Weighted Error Value: White=0.17 (very precise) /Black=0.34} 1-0